[Event "*** SCC Grand Prix: Titled Tuesday Blitz"]
[Site "Chess.com"]
[Date "2020.07.21"]
[Round "6"]
[White "RobertoJBM"]
[Black "DariaVoit"]
[Result "1-0"]
[WhiteElo "2657"]
[BlackElo "2514"]
[TimeControl "180+1"]
[EndTime "11:08:04 PDT"]
[Termination "RobertoJBM won by resignation"]

1. d4 {[%clk 0:03:00.9]} 1... Nf6 {[%clk 0:02:59.5]} 2. c4 {[%clk 0:03:00.9]}
2... e6 {[%clk 0:02:59.8]} 3. Nc3 {[%clk 0:03:00.9]} 3... Bb4 {[%clk 0:02:59.4]}
4. Qc2 {[%clk 0:03:01]} 4... O-O {[%clk 0:02:57.2]} 5. a3 {[%clk 0:03:00.6]}
5... Bxc3+ {[%clk 0:02:57.6]} 6. Qxc3 {[%clk 0:03:01.5]} 6... d5 {[%clk
0:02:56.9]} 7. Bg5 {[%clk 0:03:00.8]} 7... dxc4 {[%clk 0:02:54.7]} 8. Qxc4
{[%clk 0:03:01.6]} 8... b6 {[%clk 0:02:55.2]} 9. Nf3 {[%clk 0:03:01.2]} 9... Ba6
{[%clk 0:02:54.8]} 10. Qa4 {[%clk 0:03:01.2]} 10... c5 {[%clk 0:02:53]} 11. dxc5
{[%clk 0:03:02.1]} 11... bxc5 {[%clk 0:02:51.9]} 12. Rc1 {[%clk 0:03:02.1]}
12... Qb6 {[%clk 0:02:46.1]} 13. Bxf6 {[%clk 0:03:02.5]} 13... gxf6 {[%clk
0:02:46.1]} 14. Rc2 {[%clk 0:03:03]} 14... Rd8 {[%clk 0:02:34.4]} 15. e3 {[%clk
0:03:01.9]} 15... Bxf1 {[%clk 0:02:33.7]} 16. Rxf1 {[%clk 0:03:02.8]} 16... Nd7
{[%clk 0:02:21.2]} 17. Ke2 {[%clk 0:03:02.7]} 17... f5 {[%clk 0:01:56.5]} 18.
Rfc1 {[%clk 0:03:01.8]} 18... Nf6 {[%clk 0:01:53.1]} 19. Kf1 {[%clk 0:02:37.2]}
19... Ne4 {[%clk 0:01:48.8]} 20. Kg1 {[%clk 0:02:32.7]} 20... Rd5 {[%clk
0:01:45.8]} 21. g3 {[%clk 0:02:01.3]} 21... Rad8 {[%clk 0:01:43.5]} 22. b4
{[%clk 0:02:00]} 22... cxb4 {[%clk 0:01:32.2]} 23. Qxb4 {[%clk 0:01:56]} 23...
Rd1+ {[%clk 0:01:28.2]} 24. Kg2 {[%clk 0:01:52]} 24... Qa6 {[%clk 0:01:22.2]}
25. Rc4 {[%clk 0:01:17.6]} 25... Rxc1 {[%clk 0:01:12.7]} 26. Rxc1 {[%clk
0:01:18.5]} 26... Qe2 {[%clk 0:01:11.5]} 27. Qe1 {[%clk 0:01:17.6]} 27... Qxe1
{[%clk 0:01:04.3]} 28. Rxe1 {[%clk 0:01:16]} 28... Rd3 {[%clk 0:01:03.4]} 29.
Ra1 {[%clk 0:01:16.5]} 29... Rb3 {[%clk 0:00:58.9]} 30. Ra2 {[%clk 0:01:16.2]}
30... Nc3 {[%clk 0:00:55.7]} 31. Rd2 {[%clk 0:01:13.4]} 31... Rxa3 {[%clk
0:00:45.3]} 32. Rd3 {[%clk 0:01:03.9]} 32... Kg7 {[%clk 0:00:34.4]} 33. Ne5
{[%clk 0:01:03.1]} 33... Kf6 {[%clk 0:00:27.9]} 34. Nc4 {[%clk 0:00:27]} 34...
Rb3 {[%clk 0:00:28]} 35. Na5 {[%clk 0:00:24.7]} 35... Rb5 {[%clk 0:00:25.5]} 36.
Nc6 {[%clk 0:00:24.7]} 36... Rc5 {[%clk 0:00:19.2]} 37. Nxa7 {[%clk 0:00:21]}
37... Ne4 {[%clk 0:00:19.3]} 38. f3 {[%clk 0:00:21.1]} 38... Rc2+ {[%clk
0:00:18.4]} 39. Kg1 {[%clk 0:00:21.6]} 39... Rc1+ {[%clk 0:00:17.7]} 40. Kg2
{[%clk 0:00:21.6]} 40... Rc2+ {[%clk 0:00:17.8]} 41. Kg1 {[%clk 0:00:22.1]}
41... Ng5 {[%clk 0:00:18]} 42. e4 {[%clk 0:00:20.4]} 42... fxe4 {[%clk
0:00:17.5]} 43. fxe4 {[%clk 0:00:20.8]} 43... Nxe4 {[%clk 0:00:17.8]} 44. Nb5
{[%clk 0:00:21.2]} 44... Ke5 {[%clk 0:00:17.5]} 45. Nd4 {[%clk 0:00:20]} 45...
Rc1+ {[%clk 0:00:17]} 46. Kg2 {[%clk 0:00:20.2]} 46... f5 {[%clk 0:00:17.5]} 47.
Nf3+ {[%clk 0:00:20.2]} 47... Kf6 {[%clk 0:00:17.6]} 48. Rd7 {[%clk 0:00:18.8]}
48... Rc2+ {[%clk 0:00:17.9]} 49. Kg1 {[%clk 0:00:19.1]} 49... Nc5 {[%clk
0:00:17.8]} 50. Rxh7 {[%clk 0:00:18.8]} 50... Nd3 {[%clk 0:00:16]} 51. Rh6+
{[%clk 0:00:18.4]} 51... Ke7 {[%clk 0:00:16.2]} 52. Nd4 {[%clk 0:00:17.7]} 52...
Rc1+ {[%clk 0:00:14.9]} 53. Kg2 {[%clk 0:00:17.7]} 53... e5 {[%clk 0:00:14.2]}
54. Nxf5+ {[%clk 0:00:17.6]} 54... Kf7 {[%clk 0:00:14.7]} 55. Ne3 {[%clk
0:00:17.7]} 55... Re1 {[%clk 0:00:14.4]} 56. Ng4 {[%clk 0:00:17.7]} 56... Re2+
{[%clk 0:00:14.5]} 57. Kg1 {[%clk 0:00:16.1]} 57... e4 {[%clk 0:00:13.7]} 58.
Rf6+ {[%clk 0:00:16.1]} 58... Ke7 {[%clk 0:00:13.6]} 59. Rf1 {[%clk 0:00:16.8]}
59... Ke6 {[%clk 0:00:12.2]} 60. h4 {[%clk 0:00:14.7]} 60... Ne1 {[%clk
0:00:12.6]} 61. Rf2 {[%clk 0:00:13]} 61... Nf3+ {[%clk 0:00:12.8]} 62. Kg2
{[%clk 0:00:13.6]} 62... Re1 {[%clk 0:00:13.1]} 63. h5 {[%clk 0:00:11.3]} 63...
Rg1+ {[%clk 0:00:12.8]} 64. Kh3 {[%clk 0:00:11.9]} 64... Rh1+ {[%clk 0:00:13.3]}
65. Kg2 {[%clk 0:00:12.1]} 65... Kf5 {[%clk 0:00:13.2]} 66. Ne3+ {[%clk
0:00:11.4]} 66... Kg5 {[%clk 0:00:12.8]} 67. Kxh1 {[%clk 0:00:12.3]} 1-0

[Event "*** SCC Grand Prix: Titled Tuesday Blitz"]
[Site "Chess.com"]
[Date "2020.07.21"]
[Round "6"]
[White "swimmerchess"]
[Black "Anna_ChessMate"]
[Result "1-0"]
[WhiteElo "2795"]
[BlackElo "2506"]
[TimeControl "180+1"]
[EndTime "11:08:13 PDT"]
[Termination "swimmerchess won by resignation"]

1. e4 {[%clk 0:03:00.9]} 1... c6 {[%clk 0:02:59.7]} 2. d4 {[%clk 0:03:00.4]}
2... d5 {[%clk 0:03:00.6]} 3. e5 {[%clk 0:03:00.7]} 3... Bf5 {[%clk 0:03:00]} 4.
Nf3 {[%clk 0:03:01]} 4... e6 {[%clk 0:03:00]} 5. Be2 {[%clk 0:03:01.5]} 5... Nd7
{[%clk 0:02:59.8]} 6. O-O {[%clk 0:03:00.2]} 6... h6 {[%clk 0:02:59.9]} 7. Nbd2
{[%clk 0:02:59.4]} 7... g5 {[%clk 0:02:59.8]} 8. Nb3 {[%clk 0:02:59]} 8... Ne7
{[%clk 0:03:00]} 9. a4 {[%clk 0:02:58.9]} 9... Bg7 {[%clk 0:02:59.7]} 10. a5
{[%clk 0:02:58.8]} 10... a6 {[%clk 0:02:59.8]} 11. Ne1 {[%clk 0:02:56.1]} 11...
O-O {[%clk 0:02:58.9]} 12. Nd3 {[%clk 0:02:55.2]} 12... Qc7 {[%clk 0:02:59]} 13.
Be3 {[%clk 0:02:54]} 13... f6 {[%clk 0:02:58.3]} 14. exf6 {[%clk 0:02:51.4]}
14... Nxf6 {[%clk 0:02:59.2]} 15. Nbc5 {[%clk 0:02:49.5]} 15... Ne4 {[%clk
0:02:56.8]} 16. g4 {[%clk 0:02:49.2]} 16... Rf6 {[%clk 0:02:25]} 17. gxf5 {[%clk
0:02:45.1]} 17... exf5 {[%clk 0:02:25.2]} 18. f3 {[%clk 0:02:41.3]} 18... Nxc5
{[%clk 0:02:21.4]} 19. Nxc5 {[%clk 0:02:42.2]} 19... f4 {[%clk 0:02:21.3]} 20.
Bf2 {[%clk 0:02:42.2]} 20... Nf5 {[%clk 0:02:21.8]} 21. Bd3 {[%clk 0:02:40]}
21... Ne3 {[%clk 0:02:15.4]} 22. Bxe3 {[%clk 0:02:39.7]} 22... fxe3 {[%clk
0:02:16.3]} 23. Qe2 {[%clk 0:02:40.6]} 23... Re8 {[%clk 0:02:15.5]} 24. c3
{[%clk 0:02:40.3]} 24... Bf8 {[%clk 0:02:08.1]} 25. b4 {[%clk 0:02:39.7]} 25...
Bd6 {[%clk 0:02:05.5]} 26. Rae1 {[%clk 0:02:37.5]} 26... Kg7 {[%clk 0:02:00.7]}
27. Kh1 {[%clk 0:02:36.5]} 27... Rf4 {[%clk 0:01:56.7]} 28. Rg1 {[%clk
0:02:33.1]} 28... Rh4 {[%clk 0:01:56.7]} 29. Rg2 {[%clk 0:02:33.2]} 29... Bf4
{[%clk 0:01:36.9]} 30. Bf5 {[%clk 0:02:27.4]} 30... Qf7 {[%clk 0:01:34.7]} 31.
Qd3 {[%clk 0:02:20.9]} 31... Qh5 {[%clk 0:01:28.5]} 32. Qe2 {[%clk 0:02:04.1]}
32... Bxh2 {[%clk 0:01:20.7]} 33. Rxh2 {[%clk 0:01:21.8]} 33... Rxh2+ {[%clk
0:01:21.1]} 34. Qxh2 {[%clk 0:01:22.5]} 34... Qxf3+ {[%clk 0:01:21.5]} 35. Kg1
{[%clk 0:01:23.4]} 35... Qxf5 {[%clk 0:01:14.4]} 36. Qg3 {[%clk 0:01:23.4]}
36... e2 {[%clk 0:01:11.2]} 37. Qf2 {[%clk 0:01:17.8]} 37... Qg4+ {[%clk
0:01:10.8]} 38. Qg2 {[%clk 0:01:17.8]} 38... Qh5 {[%clk 0:00:42.8]} 39. Nxb7
{[%clk 0:01:09.5]} 39... Re4 {[%clk 0:00:42]} 40. Nd6 {[%clk 0:01:05.6]} 40...
Rg4 {[%clk 0:00:30.2]} 41. Nf5+ {[%clk 0:01:05.8]} 41... Kg6 {[%clk 0:00:30.6]}
42. Ng3 {[%clk 0:01:04.7]} 42... Qh4 {[%clk 0:00:30.5]} 43. Kf2 {[%clk
0:01:04.3]} 43... Rf4+ {[%clk 0:00:22.5]} 44. Kxe2 {[%clk 0:01:04.1]} 44... Qg4+
{[%clk 0:00:20.8]} 45. Kd2 {[%clk 0:01:03.4]} 45... Rf3 {[%clk 0:00:18.8]} 46.
Re3 {[%clk 0:01:03.4]} 46... Rxe3 {[%clk 0:00:15.1]} 47. Kxe3 {[%clk 0:01:04.3]}
47... Qf4+ {[%clk 0:00:16]} 48. Kd3 {[%clk 0:01:04.4]} 48... h5 {[%clk
0:00:15.3]} 49. Nf1 {[%clk 0:00:57.4]} 49... h4 {[%clk 0:00:13.1]} 50. Ne3
{[%clk 0:00:57.2]} 50... Kh5 {[%clk 0:00:11.1]} 51. Qe2+ {[%clk 0:00:31.3]}
51... g4 {[%clk 0:00:10.5]} 52. Nf1 {[%clk 0:00:31.9]} 52... h3 {[%clk
0:00:08.3]} 53. Qe5+ {[%clk 0:00:29.1]} 53... Qxe5 {[%clk 0:00:06]} 54. dxe5
{[%clk 0:00:30]} 54... Kg5 {[%clk 0:00:04.8]} 55. Kd4 {[%clk 0:00:29.5]} 55...
Kf5 {[%clk 0:00:04.9]} 56. Ne3+ {[%clk 0:00:28.4]} 56... Kf4 {[%clk 0:00:02.5]}
57. e6 {[%clk 0:00:22]} 57... h2 {[%clk 0:00:02.4]} 58. e7 {[%clk 0:00:22.9]}
58... h1=Q {[%clk 0:00:02.7]} 59. e8=Q {[%clk 0:00:23.8]} 59... Qe4+ {[%clk
0:00:02.1]} 60. Qxe4+ {[%clk 0:00:23.5]} 60... dxe4 {[%clk 0:00:03]} 61. Nxg4
{[%clk 0:00:24.4]} 61... Kxg4 {[%clk 0:00:02.7]} 62. Kxe4 {[%clk 0:00:24.9]} 1-0

[Event "*** SCC Grand Prix: Titled Tuesday Blitz"]
[Site "Chess.com"]
[Date "2020.07.21"]
[Round "6"]
[White "M1711"]
[Black "VALPARAISO37"]
[Result "0-1"]
[WhiteElo "2406"]
[BlackElo "2282"]
[TimeControl "180+1"]
[EndTime "11:08:13 PDT"]
[Termination "VALPARAISO37 won on time"]

1. e4 {[%clk 0:03:00.9]} 1... e5 {[%clk 0:02:59.4]} 2. Nf3 {[%clk 0:03:00.6]}
2... Nc6 {[%clk 0:02:59.1]} 3. Bc4 {[%clk 0:02:58.4]} 3... Bc5 {[%clk
0:02:58.5]} 4. O-O {[%clk 0:02:58.4]} 4... Nf6 {[%clk 0:02:58]} 5. d3 {[%clk
0:02:58.1]} 5... d6 {[%clk 0:02:56.9]} 6. c3 {[%clk 0:02:56.8]} 6... O-O {[%clk
0:02:56.1]} 7. h3 {[%clk 0:02:55.5]} 7... h6 {[%clk 0:02:53.5]} 8. Nbd2 {[%clk
0:02:54.1]} 8... a6 {[%clk 0:02:53.1]} 9. Bb3 {[%clk 0:02:50.3]} 9... b5 {[%clk
0:02:51]} 10. Re1 {[%clk 0:02:49.4]} 10... Re8 {[%clk 0:02:50.4]} 11. Nf1 {[%clk
0:02:48.9]} 11... Bb6 {[%clk 0:02:49.8]} 12. Ng3 {[%clk 0:02:47.1]} 12... Be6
{[%clk 0:02:49.6]} 13. Bxe6 {[%clk 0:02:43.8]} 13... Rxe6 {[%clk 0:02:48.9]} 14.
d4 {[%clk 0:02:43.3]} 14... Re8 {[%clk 0:02:44.9]} 15. a4 {[%clk 0:02:34.9]}
15... Rb8 {[%clk 0:02:43.7]} 16. axb5 {[%clk 0:02:33.3]} 16... axb5 {[%clk
0:02:43.7]} 17. d5 {[%clk 0:02:24.2]} 17... Ne7 {[%clk 0:02:42.4]} 18. Nh4
{[%clk 0:02:17.8]} 18... Kh7 {[%clk 0:02:39.6]} 19. Qf3 {[%clk 0:02:10.8]} 19...
Neg8 {[%clk 0:02:35.6]} 20. Ngf5 {[%clk 0:02:05.7]} 20... g6 {[%clk 0:02:34.5]}
21. Ng3 {[%clk 0:01:52.4]} 21... Rf8 {[%clk 0:02:32.7]} 22. b4 {[%clk
0:01:48.8]} 22... Nxd5 {[%clk 0:02:18.5]} 23. Nhf5 {[%clk 0:01:23.1]} 23... Ndf6
{[%clk 0:02:12.2]} 24. Ne3 {[%clk 0:01:18.8]} 24... Ra8 {[%clk 0:01:55]} 25. Bd2
{[%clk 0:01:16.2]} 25... Qe7 {[%clk 0:01:52]} 26. h4 {[%clk 0:00:50.9]} 26...
Qe6 {[%clk 0:01:48.2]} 27. h5 {[%clk 0:00:46.7]} 27... Kg7 {[%clk 0:01:47.9]}
28. Rxa8 {[%clk 0:00:34.7]} 28... Rxa8 {[%clk 0:01:46.9]} 29. hxg6 {[%clk
0:00:25.2]} 29... fxg6 {[%clk 0:01:46.8]} 30. Nd5 {[%clk 0:00:21.6]} 30... Nxd5
{[%clk 0:01:44.5]} 31. exd5 {[%clk 0:00:22.5]} 31... Qf7 {[%clk 0:01:28.8]} 32.
Qxf7+ {[%clk 0:00:21.6]} 32... Kxf7 {[%clk 0:01:27.5]} 33. Kh2 {[%clk
0:00:21.8]} 33... Nf6 {[%clk 0:01:20.8]} 34. f3 {[%clk 0:00:20.3]} 34... Nxd5
{[%clk 0:01:15.3]} 35. Ne4 {[%clk 0:00:19.3]} 35... Nf6 {[%clk 0:00:52.4]} 36.
Kg3 {[%clk 0:00:19.1]} 36... Nxe4+ {[%clk 0:00:52.1]} 37. Rxe4 {[%clk
0:00:18.7]} 37... h5 {[%clk 0:00:46.6]} 38. f4 {[%clk 0:00:17.8]} 38... Ra2
{[%clk 0:00:44.9]} 39. Be1 {[%clk 0:00:12.4]} 39... Ke6 {[%clk 0:00:39.7]} 40.
fxe5 {[%clk 0:00:11.7]} 40... dxe5 {[%clk 0:00:39.3]} 41. c4 {[%clk 0:00:11.4]}
41... Kf5 {[%clk 0:00:37.8]} 42. Rh4 {[%clk 0:00:06.5]} 42... Re2 {[%clk
0:00:33.8]} 43. Rh1 {[%clk 0:00:03.8]} 43... bxc4 {[%clk 0:00:32.5]} 44. Kf3
{[%clk 0:00:03.9]} 44... Rc2 {[%clk 0:00:29.8]} 45. g4+ {[%clk 0:00:02.2]} 45...
hxg4+ {[%clk 0:00:29.6]} 46. Kg3 {[%clk 0:00:03.1]} 46... Rc1 {[%clk 0:00:29.3]}
47. Rf1+ {[%clk 0:00:02.5]} 47... Ke6 {[%clk 0:00:28.9]} 48. Kxg4 {[%clk
0:00:03.4]} 48... c3 {[%clk 0:00:28.6]} 49. Kg5 {[%clk 0:00:02.1]} 49... Kd5
{[%clk 0:00:21.4]} 50. Rf6 {[%clk 0:00:03]} 50... Rxe1 {[%clk 0:00:20.4]} 51.
Rf8 {[%clk 0:00:02.4]} 51... c2 {[%clk 0:00:18.9]} 52. Rd8+ {[%clk 0:00:03.3]}
52... Ke4 {[%clk 0:00:19.4]} 53. Rd2 {[%clk 0:00:03.7]} 53... c1=Q {[%clk
0:00:18.5]} 54. Kxg6 {[%clk 0:00:04.3]} 54... Qxd2 {[%clk 0:00:18.3]} 55. Kf7
{[%clk 0:00:05.2]} 55... Qd7+ {[%clk 0:00:17.8]} 56. Kg8 {[%clk 0:00:05]} 56...
Rg1+ {[%clk 0:00:17.5]} 57. Kf8 {[%clk 0:00:05]} 57... Qd8+ {[%clk 0:00:12.6]}
58. Kf7 {[%clk 0:00:04.7]} 58... Qg8+ {[%clk 0:00:11.9]} 59. Ke7 {[%clk
0:00:04.1]} 59... Rg7+ {[%clk 0:00:10.3]} 60. Kf6 {[%clk 0:00:03]} 60... Qf8+
{[%clk 0:00:09.9]} 0-1

[Event "*** SCC Grand Prix: Titled Tuesday Blitz"]
[Site "Chess.com"]
[Date "2020.07.21"]
[Round "6"]
[White "kleopl"]
[Black "FloMaster111"]
[Result "1-0"]
[WhiteElo "2426"]
[BlackElo "2271"]
[TimeControl "180+1"]
[EndTime "11:08:15 PDT"]
[Termination "kleopl won on time"]

1. c4 {[%clk 0:03:00.9]} 1... e6 {[%clk 0:03:00]} 2. Nc3 {[%clk 0:03:00.5]} 2...
d5 {[%clk 0:03:00.3]} 3. cxd5 {[%clk 0:03:00.1]} 3... exd5 {[%clk 0:03:00.3]} 4.
d4 {[%clk 0:03:01]} 4... Nf6 {[%clk 0:02:59.4]} 5. Bg5 {[%clk 0:03:00.5]} 5...
c6 {[%clk 0:02:56.1]} 6. e3 {[%clk 0:03:00.5]} 6... Be7 {[%clk 0:02:56.2]} 7.
Bd3 {[%clk 0:02:59]} 7... O-O {[%clk 0:02:55.1]} 8. Nf3 {[%clk 0:02:56.7]} 8...
Re8 {[%clk 0:02:55.1]} 9. O-O {[%clk 0:02:55.9]} 9... Nbd7 {[%clk 0:02:55.4]}
10. Rb1 {[%clk 0:02:55.7]} 10... Nf8 {[%clk 0:02:53.5]} 11. b4 {[%clk
0:02:55.5]} 11... a6 {[%clk 0:02:53.5]} 12. a4 {[%clk 0:02:55.2]} 12... g6
{[%clk 0:02:16.2]} 13. b5 {[%clk 0:02:52.2]} 13... axb5 {[%clk 0:02:17.1]} 14.
axb5 {[%clk 0:02:52.9]} 14... Ne6 {[%clk 0:02:16.3]} 15. Bxf6 {[%clk 0:02:49.2]}
15... Bxf6 {[%clk 0:02:16.3]} 16. bxc6 {[%clk 0:02:49.5]} 16... bxc6 {[%clk
0:02:16.6]} 17. Qc2 {[%clk 0:02:43.5]} 17... Ng7 {[%clk 0:02:08.4]} 18. Na4
{[%clk 0:02:38.4]} 18... Qd6 {[%clk 0:01:58.2]} 19. Rfc1 {[%clk 0:02:28.7]}
19... Bg4 {[%clk 0:01:38.5]} 20. Nd2 {[%clk 0:02:20.9]} 20... Rac8 {[%clk
0:01:31.5]} 21. Rb6 {[%clk 0:02:05.3]} 21... Bd7 {[%clk 0:01:20.5]} 22. Nc5
{[%clk 0:02:02.8]} 22... Bd8 {[%clk 0:01:17.2]} 23. Nxd7 {[%clk 0:01:53.6]}
23... Qxd7 {[%clk 0:01:18.1]} 24. Rxc6 {[%clk 0:01:53.5]} 24... Ra8 {[%clk
0:01:12.1]} 25. Nf3 {[%clk 0:01:41.5]} 25... Ne6 {[%clk 0:01:02.4]} 26. Ne5
{[%clk 0:01:33.1]} 26... Qe7 {[%clk 0:01:01.7]} 27. g3 {[%clk 0:01:19.8]} 27...
Bc7 {[%clk 0:00:49.2]} 28. Rxc7 {[%clk 0:01:11.1]} 28... Nxc7 {[%clk 0:00:50.1]}
29. Qxc7 {[%clk 0:01:11.4]} 29... Qe6 {[%clk 0:00:44]} 30. Rc6 {[%clk
0:00:59.2]} 30... Qh3 {[%clk 0:00:40.5]} 31. Qxf7+ {[%clk 0:00:56.9]} 31... Kh8
{[%clk 0:00:40.1]} 32. Bf1 {[%clk 0:00:43.9]} 32... Qf5 {[%clk 0:00:16.9]} 33.
Qxf5 {[%clk 0:00:38]} 33... gxf5 {[%clk 0:00:16.4]} 34. Rf6 {[%clk 0:00:36.5]}
34... Rf8 {[%clk 0:00:10.5]} 35. Rxf8+ {[%clk 0:00:36.3]} 35... Rxf8 {[%clk
0:00:11.4]} 36. Bg2 {[%clk 0:00:36.6]} 36... Kg7 {[%clk 0:00:10.4]} 37. Bxd5
{[%clk 0:00:36.5]} 37... Rd8 {[%clk 0:00:10.8]} 38. Bc4 {[%clk 0:00:33.7]} 38...
Kf6 {[%clk 0:00:10.7]} 39. Kg2 {[%clk 0:00:33.7]} 39... Rb8 {[%clk 0:00:09.6]}
40. Bd3 {[%clk 0:00:26.1]} 40... Rb2 {[%clk 0:00:08.5]} 41. Kf3 {[%clk
0:00:26.1]} 41... h6 {[%clk 0:00:07.9]} 42. h4 {[%clk 0:00:26.1]} 42... Ra2
{[%clk 0:00:07.5]} 43. Be2 {[%clk 0:00:24]} 43... Rb2 {[%clk 0:00:07.1]} 44. Nd3
{[%clk 0:00:24.2]} 44... Rd2 {[%clk 0:00:06.5]} 45. Nf4 {[%clk 0:00:24.1]} 45...
Ra2 {[%clk 0:00:05.8]} 46. Bc4 {[%clk 0:00:18.8]} 46... Rb2 {[%clk 0:00:04.3]}
47. Nh5+ {[%clk 0:00:17.3]} 47... Kg6 {[%clk 0:00:04.3]} 48. Nf4+ {[%clk
0:00:16.6]} 48... Kf6 {[%clk 0:00:04.7]} 49. h5 {[%clk 0:00:15.8]} 49... Kg5
{[%clk 0:00:04.5]} 50. Bf7 {[%clk 0:00:14.3]} 50... Kf6 {[%clk 0:00:03.9]} 51.
Bg6 {[%clk 0:00:13.6]} 51... Kg5 {[%clk 0:00:03.9]} 52. Nd5 {[%clk 0:00:12.7]}
52... Ra2 {[%clk 0:00:03.7]} 53. Ne7 {[%clk 0:00:12.7]} 53... Kf6 {[%clk
0:00:03.6]} 54. Nxf5 {[%clk 0:00:12.6]} 54... Kg5 {[%clk 0:00:03.2]} 55. e4
{[%clk 0:00:10.7]} 55... Kf6 {[%clk 0:00:02.9]} 56. Ne3 {[%clk 0:00:10.6]} 56...
Kg5 {[%clk 0:00:02.2]} 57. e5 {[%clk 0:00:10.7]} 57... Rxf2+ {[%clk 0:00:02.2]}
58. Ke4 {[%clk 0:00:09.7]} 1-0

[Event "*** SCC Grand Prix: Titled Tuesday Blitz"]
[Site "Chess.com"]
[Date "2020.07.21"]
[Round "6"]
[White "imdvb6307"]
[Black "lider34"]
[Result "1-0"]
[WhiteElo "2405"]
[BlackElo "2217"]
[TimeControl "180+1"]
[EndTime "11:08:22 PDT"]
[Termination "imdvb6307 won by checkmate"]

1. c4 {[%clk 0:03:00]} 1... Nf6 {[%clk 0:02:58.8]} 2. Nc3 {[%clk 0:02:59.4]}
2... g6 {[%clk 0:02:59.7]} 3. Nf3 {[%clk 0:02:57.9]} 3... Bg7 {[%clk 0:02:59.5]}
4. d4 {[%clk 0:02:57.8]} 4... O-O {[%clk 0:02:59.2]} 5. e4 {[%clk 0:02:57.3]}
5... d6 {[%clk 0:02:59.6]} 6. Be2 {[%clk 0:02:57.2]} 6... Nbd7 {[%clk
0:02:58.4]} 7. O-O {[%clk 0:02:56.3]} 7... e5 {[%clk 0:02:58.8]} 8. Qc2 {[%clk
0:02:56.4]} 8... c6 {[%clk 0:02:55.6]} 9. Rd1 {[%clk 0:02:56.3]} 9... Qc7 {[%clk
0:02:54.4]} 10. Rb1 {[%clk 0:02:51.1]} 10... a5 {[%clk 0:02:52.7]} 11. a3 {[%clk
0:02:45.6]} 11... Re8 {[%clk 0:02:48.8]} 12. b4 {[%clk 0:02:42.3]} 12... axb4
{[%clk 0:02:47]} 13. axb4 {[%clk 0:02:41.6]} 13... exd4 {[%clk 0:02:39.1]} 14.
Nxd4 {[%clk 0:02:40.9]} 14... Nb6 {[%clk 0:02:24.6]} 15. Bf4 {[%clk 0:02:29.4]}
15... Qe7 {[%clk 0:02:22.9]} 16. f3 {[%clk 0:02:15.1]} 16... Nh5 {[%clk
0:02:20.9]} 17. Be3 {[%clk 0:01:56.9]} 17... Be5 {[%clk 0:02:09.9]} 18. g3
{[%clk 0:01:43.5]} 18... Nxg3 {[%clk 0:02:01.6]} 19. hxg3 {[%clk 0:01:41.4]}
19... Bxg3 {[%clk 0:02:01.2]} 20. Bf1 {[%clk 0:01:35.6]} 20... Qh4 {[%clk
0:01:53]} 21. Qg2 {[%clk 0:01:35]} 21... Re5 {[%clk 0:01:45.5]} 22. Nde2 {[%clk
0:01:31.2]} 22... Nxc4 {[%clk 0:01:36.3]} 23. Bc1 {[%clk 0:01:21.4]} 23... Be1
{[%clk 0:01:02.9]} 24. Rxe1 {[%clk 0:01:20.3]} 24... Qxe1 {[%clk 0:00:58.6]} 25.
Bg5 {[%clk 0:01:13.7]} 25... Rxg5 {[%clk 0:00:47.4]} 26. Rxe1 {[%clk 0:01:05.6]}
26... Rxg2+ {[%clk 0:00:45.5]} 27. Kxg2 {[%clk 0:01:00.7]} 27... Ne3+ {[%clk
0:00:42.9]} 28. Kf2 {[%clk 0:00:59.9]} 28... Nxf1 {[%clk 0:00:42.2]} 29. Kxf1
{[%clk 0:00:58.5]} 29... Be6 {[%clk 0:00:39.9]} 30. Rd1 {[%clk 0:00:57.2]} 30...
Ra3 {[%clk 0:00:36.8]} 31. Rxd6 {[%clk 0:00:54.7]} 31... Rb3 {[%clk 0:00:36.6]}
32. Rd4 {[%clk 0:00:54.6]} 32... Kg7 {[%clk 0:00:36.3]} 33. Ke1 {[%clk
0:00:52.5]} 33... Kf6 {[%clk 0:00:35.2]} 34. Kd2 {[%clk 0:00:46.1]} 34... Ra3
{[%clk 0:00:34.9]} 35. Kc2 {[%clk 0:00:44.6]} 35... h5 {[%clk 0:00:34.4]} 36. f4
{[%clk 0:00:41.9]} 36... h4 {[%clk 0:00:31.8]} 37. Rd2 {[%clk 0:00:34.3]} 37...
Ra1 {[%clk 0:00:30.6]} 38. Rd1 {[%clk 0:00:32.9]} 38... Rxd1 {[%clk 0:00:29.9]}
39. Nxd1 {[%clk 0:00:32.3]} 39... g5 {[%clk 0:00:29.1]} 40. Kd3 {[%clk
0:00:27.2]} 40... g4 {[%clk 0:00:26.8]} 41. f5 {[%clk 0:00:27.3]} 41... Bd7
{[%clk 0:00:21.2]} 42. Ke3 {[%clk 0:00:24.9]} 42... Kg5 {[%clk 0:00:21.4]} 43.
Nf2 {[%clk 0:00:23.8]} 43... h3 {[%clk 0:00:20.3]} 44. Ng3 {[%clk 0:00:23]}
44... b6 {[%clk 0:00:20]} 45. Nd3 {[%clk 0:00:21.1]} 45... f6 {[%clk 0:00:18.9]}
46. Nb2 {[%clk 0:00:20.3]} 46... Bc8 {[%clk 0:00:19.1]} 47. Nc4 {[%clk
0:00:19.8]} 47... b5 {[%clk 0:00:18.7]} 48. Na5 {[%clk 0:00:19.3]} 48... Bd7
{[%clk 0:00:19.6]} 49. Nb7 {[%clk 0:00:19.1]} 49... Be8 {[%clk 0:00:19]} 50. Nc5
{[%clk 0:00:18.8]} 50... Bd7 {[%clk 0:00:19.1]} 51. Ne6+ {[%clk 0:00:18.5]}
51... Kh4 {[%clk 0:00:16.1]} 52. Kf2 {[%clk 0:00:18]} 52... h2 {[%clk 0:00:17]}
53. Kg2 {[%clk 0:00:17.5]} 53... Bxe6 {[%clk 0:00:15]} 54. fxe6 {[%clk
0:00:16.7]} 54... Kg5 {[%clk 0:00:14.7]} 55. e7 {[%clk 0:00:16.5]} 55... Kf4
{[%clk 0:00:15.6]} 56. e8=Q {[%clk 0:00:16.2]} 56... Ke3 {[%clk 0:00:15.3]} 57.
Qxc6 {[%clk 0:00:15.5]} 57... Kf4 {[%clk 0:00:14.6]} 58. Qxf6+ {[%clk
0:00:15.3]} 58... Ke3 {[%clk 0:00:14.4]} 59. Qb6+ {[%clk 0:00:14.7]} 59... Kd3
{[%clk 0:00:13.9]} 60. Qxb5+ {[%clk 0:00:14.8]} 60... Ke3 {[%clk 0:00:13.3]} 61.
Qg5+ {[%clk 0:00:13.2]} 61... Kd3 {[%clk 0:00:12.1]} 62. Kxh2 {[%clk 0:00:13.3]}
62... Kd4 {[%clk 0:00:10.8]} 63. e5 {[%clk 0:00:13.1]} 63... Kc4 {[%clk
0:00:11.7]} 64. e6 {[%clk 0:00:12.7]} 64... Kxb4 {[%clk 0:00:12]} 65. e7 {[%clk
0:00:12.9]} 65... Kc4 {[%clk 0:00:12.3]} 66. e8=Q {[%clk 0:00:12.7]} 66... Kd4
{[%clk 0:00:13.2]} 67. Qeb5 {[%clk 0:00:11.8]} 67... Kc3 {[%clk 0:00:10.7]} 68.
Ne2+ {[%clk 0:00:11.5]} 68... Kc2 {[%clk 0:00:09.9]} 69. Qbc5+ {[%clk
0:00:09.5]} 69... Kd1 {[%clk 0:00:08.8]} 70. Qcc1+ {[%clk 0:00:08.7]} 70... Kxe2
{[%clk 0:00:08]} 71. Qge3# {[%clk 0:00:09.1]} 1-0